Cogmind - Beta 13 @@@ ROGUE MODE // 2024.05.05 @ 02:06:41 Player: CONM Result: Destroyed by P-60 Hacker with Shock Rifle Performance ------------- Evolutions (3) 1500 Regions Visited (4) 800 Robots Destroyed (26) 130 Value Destroyed (773) 773 Prototype IDs (0) 0 Alien Tech Used (0) 0 Bonus (11) 11 TOTAL SCORE: 3214 Bonus ------- High Alert Combat Kills 11 Cogmind --------- Core Integrity 0/700 Matter 114/300 Energy 100/100 System Corruption 14% Temperature Warm (108) Movement Rolling (100) Location -7/Factory Parts ------- > --- POWER (1) -------- (None) > --- PROPULSION (5) --- Armored Huge Wheel > --- UTILITY (5) ------ Advanced Targeting Computer > --- WEAPON (2) ------- (None) > --- INVENTORY (5) ---- Light Nuclear Core Coolant Injector Autogun Peak State ------------ > --- POWER ------------ Improved Deuterium Engine > --- PROPULSION ------- Armored Huge Wheel Armored Huge Wheel > --- UTILITY ---------- Small Storage Unit Advanced Targeting Computer Reflective Plating Improved Shield Generator Hacking Suite > --- WEAPON ----------- Gauss Cannon Shock Bomb Launcher > --- INVENTORY -------- Light Nuclear Core Light Nuclear Core Improved Heat Sink Coolant Injector Launcher Guidance Computer Arc Projector Precision Assault Rifle Precision Assault Rifle [Rating: 44] Favorites ----------- Power Ion Engine Engine Ion Engine Power Core Micro Nuclear Core Propulsion Cesium-ion Thruster Treads Light Treads Leg Aluminum Leg Wheel Armored Huge Wheel Flight Unit Cesium-ion Thruster Utility Hacking Suite Device Transmission Jammer Storage Small Storage Unit Processor Advanced Targeting Computer Hackware Hacking Suite Protection Light Armor Plating Weapon Light Assault Rifle Energy Gun Backup Laser III Ballistic Gun Light Assault Rifle Ballistic Cannon Gauss Cannon Launcher Shock Bomb Launcher Special Weapon Remote Datajack Build | -11 -10 -9 -8 -7 ------- Run | Yrd Mat Mat Mat Fac Slots Evolved 6 | . . 2 2 2 Power . | . . . . . Propulsion 3 | . . 1 1 1 Utility 3 | . . 1 1 1 Weapon . | . . . . . Parts Attached 52 | 5 4 16 3 24 Power 7 | 1 . 1 . 5 Engine 4 | 1 . 1 . 2 Core 3 | . . . . 3 Reactor . | . . . . . Propulsion 16 | 2 2 7 . 5 Treads 2 | 2 . . . . Leg 5 | . 2 3 . . Wheel 3 | . . . . 3 Hover . | . . . . . Flight 6 | . . 4 . 2 Utility 13 | 1 . 4 1 7 Device 3 | . . . . 3 Storage 1 | 1 . . . . Processor 1 | . . . . 1 Hackware 4 | . . 2 1 1 Protection 4 | . . 2 . 2 Artifact . | . . . . . Weapon 16 | 1 2 4 2 7 Energy Gun 3 | . 1 . . 2 Energy Cannon . | . . . . . Ballistic Gun 1 | 1 . . . . Ballistic Cannon 1 | . . . . 1 Launcher 10 | . 1 4 2 3 Special Weapon 1 | . . . . 1 Impact Weapon . | . . . . . Slashing Weapon . | . . . . . Piercing Weapon . | . . . . . Special Melee Weapon . | . . . . . Unidentified Prototypes . | . . . . . Parts Lost 25 | . 1 1 4 19 Power 4 | . . . 1 3 Propulsion 9 | . 1 1 1 6 Utility 7 | . . . 1 6 Weapon 5 | . . . 1 4 Highest Loss Streak 10 | . 1 1 4 10 To Critical Strikes . | . . . . . Average Slot Usage (%) 73 | . 81 85 65 64 Engine 7 | . 14 10 3 3 Core 1 | . . . . 2 Treads 2 | . 16 . . . Leg 6 | . 11 15 . . Wheel 4 | . . . . 10 Flight 9 | . . 16 20 5 Device 1 | . . . . 3 Storage 9 | . 14 11 9 6 Processor 1 | . . . . 3 Hackware 9 | . . 6 18 13 Protection 5 | . . 10 2 4 Energy Gun 1 | . 4 . 4 . Ballistic Gun 3 | . 14 5 . . Ballistic Cannon 1 | . . . . 3 Launcher 5 | . 6 7 6 3 Naked Turns . | . . . . . Heaviest Build 36 | 11 14 19 15 36 Greatest Support 56 | 40 40 30 15 56 Greatest Overweight (x) 4 | 1 . 3 1 4 Average Overweight (x) . | . . . . . Largest Inventory Capacity 8 | 8 8 8 8 8 Average Capacity 7 | 7 8 8 8 7 Most Carried 8 | 4 5 8 8 8 Average Carried 6 | 2 3 7 6 6 Final Capacity 8 | 8 8 8 8 5 Final Carried 8 | 4 5 7 8 3 Class Distribution -------------------- 46% | Mutant 22% | Hacker-Mutant 16% | Hacker-Sprinter 13% | Sprinter Dominant Class ---------------- Mutant | -10/Materials Sprinter | -9/Materials Hacker-Sprinter | -8/Materials Hacker-Mutant | -7/Factory Resources | -11 -10 -9 -8 -7 ----------- Run | Yrd Mat Mat Mat Fac Matter Collected 850 | 246 82 111 279 132 Remotely . | . . . . . Salvage Created 527 | . 120 144 85 178 Parts 40 | . 9 15 9 7 Haulers Intercepted . | . . . . . Recyclers Shooed 1 | . . . . 1 Parts Field Recycled . | . . . . . Retrieved Matter . | . . . . . Parts Self-Destructed . | . . . . . Prevented . | . . . . . Kills | -11 -10 -9 -8 -7 ------- Run | Yrd Mat Mat Mat Fac Combat Hostiles Destroyed 19 | . 5 4 6 4 Guns 2 | . 2 . . . Cannons 2 | . . . . 2 AOE 15 | . 3 4 6 2 Classes Destroyed 9 | . 4 3 1 1 Worker 2 | . . . 2 . Builder 1 | . 1 . . . Recycler 1 | . . 1 . . Operator 1 | . 1 . . . Watcher 2 | . . 2 . . Swarmer 9 | . 2 3 4 . Grunt 7 | . 3 . 2 2 Duelist 1 | . . . . 1 Sentry 2 | . . 1 . 1 Best Kill Streak 8 | . 5 3 8 3 Combat Bots Only 6 | . 4 3 6 3 Max Kills in Single Turn 3 | . 2 3 3 1 Gunslinging . | . . . . . Exploded 3 | . 1 3 3 1 Melee . | . . . . . Uniques/NPCs Destroyed . | . . . . . Combat | -11 -10 -9 -8 -7 -------- Run | Yrd Mat Mat Mat Fac Hostile Shots Fired 379 | . 43 30 26 280 Missed 133 | . 12 16 12 93 Damage Taken 3247 | . 412 214 279 2342 Core 861 | . 53 . 99 709 Absorbed by Shields 176 | . . . . 176 Ignored by Resistances 72 | . . . . 72 Core Remaining (%) 90 | 100 78 100 82 . Volleys Fired 54 | . 16 10 5 23 Largest 2 | . 2 2 2 2 Hottest 103 | . 60 80 80 103 Shots Fired 89 | . 32 18 7 32 Gun 36 | . 22 7 2 5 Cannon 20 | . . . . 20 Launcher 33 | . 10 11 5 7 Special . | . . . . . Kinetic 41 | . 16 5 . 20 Thermal 4 | . . 2 2 . Explosive 26 | . 10 9 5 2 Electromagnetic 18 | . 6 2 . 10 Robot Hit Streak 12 | . 4 2 4 12 Robot Miss Streak 6 | . 3 6 5 2 Penetration Max 1 | . . . . 1 Secondary Targets . | . . . . . Shots Hit Robots 50 | . 20 4 4 22 Core Hits 47 | . 16 10 12 9 Critical Kills . | . . . . . Critical Parts Destroyed . | . . . . . Critical Strikes 1 | . . . . 1 Blast 1 | . . . . 1 Melee Attacks . | . . . . . Impact . | . . . . . Slashing . | . . . . . Piercing . | . . . . . Sneak Attacks . | . . . . . Combat Hostiles . | . . . . . Follow-up Attacks . | . . . . . Damage Inflicted 2236 | . 530 460 571 675 Guns 181 | . 139 . . 42 Cannons 414 | . . . . 414 Explosions 1572 | . 391 460 571 150 Melee . | . . . . . Ramming 69 | . . . . 69 Kinetic 513 | . 99 . . 414 Thermal . | . . . . . Explosive 1334 | . 391 372 571 . Electromagnetic 320 | . 40 88 . 192 Impact . | . . . . . Slashing . | . . . . . Piercing . | . . . . . Highest Corruption 13 | . . . . 13 Average Corruption 7 | . . . . 7 Corruption Purged . | . . . . . Corruption Blocked . | . . . . . Effects 4 | . . . . 4 Message Errors 2 | . . . . 2 Heat Flow Errors 2 | . . . . 2 Overload Shots . | . . . . . Overflow Damage 178 | . 76 1 58 43 Projectiles . | . . . . . Explosions 178 | . 76 1 58 43 Melee . | . . . . . Knockbacks 3 | . . . . 3 Impact . | . . . . . Kinetic 3 | . . . . 3 Secondary . | . . . . . Self-Inflicted Damage 503 | . 90 10 101 302 Shots 15 | . 4 1 3 7 Rammed 5 | . . . . 5 Targets Rammed 5 | . . . . 5 Kicked . | . . . . . Crushed . | . . . . . Highest Temperature 216 | . 58 106 24 216 Average Temperature 38 | . 22 39 8 58 Received Heat Transfer 601 | . 117 72 18 394 Siege Activations . | . . . . . Robots Corrupted . | . . . . . Combat Hostiles . | . . . . . Parts Fried 1 | . . 1 . . Impact Corruptions . | . . . . . Robots Melted . | . . . . . Combat Hostiles . | . . . . . Parts Melted . | . . . . . Heat Transferred . | . . . . . Parts Sabotaged . | . . . . . Parts Stolen . | . . . . . Parts Stripped . | . . . . . Power Chain Reactions 1 | . . . . 1 Alert | -11 -10 -9 -8 -7 ------- Run | Yrd Mat Mat Mat Fac Peak Influence 432 | . 258 432 345 260 Initial 156 | . . 108 118 156 Average 181 | . 113 265 241 164 Maximum Alert Level 2 | . 1 2 1 1 Low Security (%) 60 | 100 58 16 31 92 Level 1 36 | . 41 72 68 8 Level 2 3 | . . 10 . . Level 3 . | . . . . . Level 4 . | . . . . . Level 5 . | . . . . . High Security . | . . . . . Max Security . | . . . . . Squads Dispatched 8 | . 2 1 2 3 Investigation 1 | . . . 1 . Extermination 1 | . . . . 1 Reinforcement 6 | . 2 1 1 2 Assault . | . . . . . Garrison . | . . . . . Intercept . | . . . . . Searches Triggered . | . . . . . Construction Impeded 1 | . . 1 . . Haulers Reinforced . | . . . . . Active Scanning Responses . | . . . . . Cargo Convoy Interrupts 1 | . . . . 1 Stealth | -11 -10 -9 -8 -7 --------- Run | Yrd Mat Mat Mat Fac Distress Signals 2 | . . 2 . . Communications Jammed . | . . . . . Distress Signals . | . . . . . Times Spotted 70 | . 11 15 16 28 Peak Tracking Total 18 | . 7 4 9 18 Tactical Retreats 7 | . . 1 2 4 Traps | -11 -10 -9 -8 -7 ------- Run | Yrd Mat Mat Mat Fac Traps Triggered 2 | . . 2 . . Indirectly . | . . . . . Trap Hack Attempts . | . . . . . Triggered . | . . . . . Disarmed . | . . . . . Reprogrammed . | . . . . . Reused . | . . . . . Traps Extracted . | . . . . . Installed . | . . . . . Triggered . | . . . . . Machines | -11 -10 -9 -8 -7 ---------- Run | Yrd Mat Mat Mat Fac Machines Disabled 17 | . 2 9 1 5 Max in Single Turn 4 | . 1 4 1 4 Machines Repaired . | . . . . . Machines Dismantled . | . . . . . Machines Sabotaged . | . . . . . Overloaded Fab Kills . | . . . . . Hacking | -11 -10 -9 -8 -7 --------- Run | Yrd Mat Mat Mat Fac Machines Accessed 5 | . . 2 1 2 Terminals 3 | . . 1 . 2 Fabricators . | . . . . . Repair Stations 1 | . . 1 . . Recycling Units 1 | . . . 1 . Scanalyzers . | . . . . . Garrison Access . | . . . . . Total Hacks 9 | . . 3 3 3 Successful 7 | . . 2 3 2 Failed 2 | . . 1 . 1 Catastrophic . | . . . . . Database Lockouts . | . . . . . Manual . | . . . . . Terminals 4 | . . 1 . 3 Fabricators . | . . . . . Repair Stations 2 | . . 2 . . Recycling Units 3 | . . . 3 . Scanalyzers . | . . . . . Garrison Access . | . . . . . Terminal Hacks 3 | . . 1 . 2 Record 1 | . . 1 . . Robot Analysis 1 | . . . . 1 Open DSF 1 | . . . . 1 Fabricator Hacks . | . . . . . Repair Station Hacks 1 | . . 1 . . Refit 1 | . . 1 . . Recycling Unit Hacks 3 | . . . 3 . Recycle Component 1 | . . . 1 . Process 1 | . . . 1 . Retrieve Matter 1 | . . . 1 . Scanalyzer . | . . . . . Garrison Access Hacks . | . . . . . Unauthorized Hacks . | . . . . . Terminals . | . . . . . Fabricators . | . . . . . Repair Stations . | . . . . . Recycling Units . | . . . . . Scanalyzers . | . . . . . Garrison Access . | . . . . . Data Cores Recovered . | . . . . . Used . | . . . . . Hacking Detections 4 | . . 2 1 1 Full Trace Events 1 | . . . 1 . Feedback Events . | . . . . . Feedback Blocked . | . . . . . Robot Schematics Acquired . | . . . . . Robots Built . | . . . . . Authchips . | . . . . . Time . | . . . . . Total Robot Build Rating . | . . . . . Part Schematics Acquired . | . . . . . Parts Built . | . . . . . Authchips . | . . . . . Time . | . . . . . Total Part Build Rating . | . . . . . Parts Repaired . | . . . . . Time . | . . . . . Parts Recycled 1 | . . . 1 . Recycled Matter 13 | . . . 13 . Retrieved Matter . | . . . . . Retrieved Components . | . . . . . Parts Scanalyzed . | . . . . . Part Schematics Acquired . | . . . . . Parts Damaged . | . . . . . Bothacking | -11 -10 -9 -8 -7 ------------ Run | Yrd Mat Mat Mat Fac Used RIF Installer . | . . . . . Robots Hacked . | . . . . . Non-combat . | . . . . . Combat . | . . . . . Robot Hacks Applied . | . . . . . Relay Couplers Released . | . . . . . Fabnet Peak Effective % . | . . . . . Robots Rewired . | . . . . . Allies Hacked . | . . . . . Hacks Repelled . | . . . . . Allies | -11 -10 -9 -8 -7 -------- Run | Yrd Mat Mat Mat Fac Total Allies . | . . . . . Largest Group . | . . . . . Highest-Rated Group . | . . . . . Highest-Rated Ally . | . . . . . Total Orders . | . . . . . Ally Attacks . | . . . . . Total Damage . | . . . . . Kills . | . . . . . Allies Corrupted . | . . . . . Allies Melted . | . . . . . Intel | -11 -10 -9 -8 -7 ------- Run | Yrd Mat Mat Mat Fac Robot Analysis Total 1 | . . . . 1 Derelict Logs Recovered . | . . . . . Drone Launches . | . . . . . Drone Recoveries . | . . . . . Exploration | -11 -10 -9 -8 -7 ------------- Run | Yrd Mat Mat Mat Fac Turns Passed 1841 | 114 277 511 164 775 Spaces Moved 2609 | 69 158 947 423 1012 Core 69 | 9 . . . 60 Treads 139 | 60 79 . . . Legs 261 | . 79 182 . . Wheels 439 | . . . . 439 Hover . | . . . . . Flight 1701 | . . 765 423 513 Fastest Speed 28 | 50 120 29 29 28 Average Speed 59 | 150 140 46 33 62 Slowest Speed 275 | 160 160 275 112 250 Overloaded Moves . | . . . . . Propulsion Burnouts . | . . . . . Robots Hopped 15 | . . 9 2 4 Cave-ins Triggered . | . . . . . Exploration Rate (%) 24 | 5 30 40 31 16 Regions Visited 4 Branch Regions . Pre-discovered Areas . | . . . . . Known Exits Taken . | . . . . . Unknown Exits Taken 4 | 1 1 1 1 . Scrap Searched . | . . . . . Spaces Dug 3 | . . . . 3 Terrain Destroyed 118 | . 53 25 33 7 Melee . | . . . . . Projectile 4 | . . . . 4 AOE 114 | . 53 25 33 3 Terrain Rammed . | . . . . . Walls Destroyed . | . . . . . Machines Disabled . | . . . . . Actions | -11 -10 -9 -8 -7 --------- Run | Yrd Mat Mat Mat Fac Total 2802 | 77 185 990 435 1115 Wait 39 | . 3 . . 36 Move 2575 | 68 157 928 418 1004 Hop 15 | . . 9 2 4 Pick Up 38 | 4 4 15 5 10 Fast Attach 15 | 5 . 4 . 6 Attach 33 | . 3 12 3 15 Detach 6 | . . 3 . 3 Swap 4 | . 1 . . 3 Drop 18 | . 1 9 2 6 Fire 54 | . 16 10 5 23 Melee . | . . . . . Ram 5 | . . . . 5 Kick . | . . . . . Crush . | . . . . . Escape Stasis . | . . . . . Rewire . | . . . . . Trap . | . . . . . Miscellaneous . | . . . . . Route ------- -11/Scrapyard -10/Materials -9/Materials -8/Materials -7/Factory History --------- Turn | Location | Event 10 | -11/Scrapyard | Discovered new exit (range 16) 115 | -11/Scrapyard | Entered Materials 302 | -10/Materials | Build established: Mutant 328 | -10/Materials | Discovered new exit (range 13) 392 | -10/Materials | Entered another Materials area 392 | -9/Materials | Evolved 2 slots: Propulsion x1, Utility x1 896 | -9/Materials | Discovered new exit (range 6) 903 | -9/Materials | Entered another Materials area 903 | -8/Materials | Evolved 2 slots: Propulsion x1, Utility x1 1006 | -8/Materials | Lost 4 parts (1p1n1u1w) 1048 | -8/Materials | Met 7R-MNS 1058 | -8/Materials | Discovered new exit (range 15) 1067 | -8/Materials | Entered Factory 1067 | -7/Factory | Evolved 2 slots: Propulsion x1, Utility x1 1265 | -7/Factory | Lost 8 parts (1p4n2u1w) 1518 | -7/Factory | Build established: Hacker-Mutant 1804 | -7/Factory | Cargo convoy interrupted 1807 | -7/Factory | Core integrity fell below 50% 1809 | -7/Factory | System corruption reached 10% 1812 | -7/Factory | Core integrity fell below 20% 1839 | -7/Factory | Lost 10 parts (1p2n4u3w) 1842 | -7/Factory | Destroyed by P-60 Hacker with Shock Rifle Last Messages --------------- 01817_ ALERT: Rogue bot located, Programmers report to Factory Zone 1X. 01820_ IQ:IM#GFHTMO|>LA63RBV,&AUCGLB>, 01820_ P-60 Hacker resets T-07 Excavator, system corruption cleaned. 01825_ Acquired Autogun. 01827_ P-60 Hacker destroyed. 01827_ P-60 Hacker fails to hack 1Q-38O(g). 01828_ A derelict emerges from the shadows: "What are you doing here, didn't you get that announcement? It sounds like they're after you!" 01828_ P-60 Hacker hacks 1Q-38O(g), rebooting. 01832_ 1Q-38O(g) destroyed. 01832_ ALERT: Hostiles spotted, dispatching reinforcements to Terminal F005. 01833_ P-60 Hacker resets P-60 Hacker, system corruption cleaned. 01837_ System corrupted: Heat flow error (+243). 01842_ Lgt. Nuclear Core destroyed. Map ----- +----------------------------------------------------+ | ?????????????????????????????????????????? ??? | | ?????????????????????????????????????????? #?? | | ?????????????????????????????????????????? #?? | | ?????????????????????????????????????????? ??? | | ??????????????????????????????? ????????? ### | | ????????????????????????????? ?????????# ## | | ??????????????????????????? ?????????# ## " | | ??????????????????????????? ?????????# ## " | | ???????????????????????????# ?????????# ## " | | ???????????????????????????# ########## ## | | ???????????????????????????# # * | | ???????????????????????????# # | | ???????????????????????????# " """ T # | | ???????????????????????????# """ # ! | | ???????????????????????????# """ ### | | ???????????????????????######## !!##? | | ???????????????????????# m " """ """ !### | | ???????????????????????# """ " """ """ =%= | | ???????????????????????# """ [ "" """ """ !== | | ???????????????????????# """ | % = | | ???????????????????????# p*! | | ???????????????????????# p""" ##/######## | | ???????????????????????#p """ %# ?????# | | ???????????????????????# """ =# """"????# %"% "" | | ???????????????????????# p # """" ???# ""% "" | | ???????????????????????# @ p # """" ??+ """""" | | ???????????????????????# p # """" ?# """%"" | | ???????????????????????# # ""????? # "%" | | ???????????????????????# !! # ????????# " | | ???????????????????????# ! # ????????## #### | | ???????????????????????# ##?????????? ? ???? | | ???????????????????????# #????????????? ???? | | ???????????????????????# #????????????? ???? | | ???????????????????????#########?????????????????? | | ?????????????????????????????????????????????????? | | ?????????????????????????????????????????????????? | | ?????????????????????????????????????????????????? | | ?????????????????????????????????????????????????? | | ?????????????????????????????????????????????????? | | ?????????????????????????????????????????????????? | | ?????????????????????????????????????????????????? | | ?????????????????????????????????????????????????? | | ?????????????????????????????????????????????????? | | ?????????????????????????????????????????????????? | | ?????????????????????????????????????????????????? | | ?????????????????????????????????????????????????? | | ?????????????????????????????????????????????????? | | ?????????????????????????????????????????????????? | | ?????????????????????????????????????????????????? | | ?????????????????????????????????????????????????? | +----------------------------------------------------+ Best States ------------- Heat Dissipation 34 Energy Generation 16 Energy Capacity 290 Matter Stores 300 Matter Capacity 300 Sight Range 16 Terrain Scan Density 10 Jamming Range 12 Armor Coverage 150 Resistance: TH 10 Evasion (%) 64 Targeting Accuracy 8 Recoil Reduction 2 Offensive Hacking 30 Item Schematics ----------------- None Robot Schematics ------------------ None Fabricated ------------ Nothing Alien Tech Used ----------------- None Achievements -------------- Please Form A Line Challenges ------------ None Game ------ Seed LatentKineticClaws Manual? 0 Play Time 00:47:45 Cumulative 11.4 hours Start 2024.05.04 @ 17:30:14 End 2024.05.05 @ 02:06:41 Sessions 1 Manual Loads 0 Difficulty Rogue Special Mode None Game No. 24 Rogue 24 Adventurer 0 Explorer 0 Win Type - Total 0 Types 0/0/0/0/0/0/0/0/0 Lore% 14 Gallery% 12 Achievement% 11 Wizard Run 0 Options --------- Layout 1 ASCII 0 Keyboard 0 Movement Arrows Keybinds 0 Fullscreen 1 Font 24/Smallcaps Map View 50x40 Zoom Use 0% Tactical HUD 1 Map Filters NONE Filters NONE Steam 1 RUN: 51f92658-bba5-443c-992c-08c19ee12381